bitfinex/quotes_BTCUSD_20250101
["timestamp","ask_amount","ask_price","bid_price","bid_amount"]
[1735767728792,5.8e-07,95030.0,95029.0,0.583462]
[1735767728943,5.8e-07,95030.0,95029.0,0.70207822]
[1735767729301,5.8e-07,95030.0,95029.0,0.75631823]
[1735767730053,5.8e-07,95030.0,95029.0,0.77031823]
[1735767730744,3.8e-07,95032.0,95031.0,0.4556]
[1735767730960,3.8e-07,95032.0,95031.0,0.62300632]
[1735767731131,3.8e-07,95032.0,95031.0,0.58635515]
[1735767732281,3.8e-07,95032.0,95031.0,0.60035515]
[1735767732939,3.8e-07,95032.0,95031.0,0.68093748]
[1735767733154,3.8e-07,95032.0,95031.0,0.59833748]
[1735767733680,0.0822,95046.0,95045.0,0.1]
[1735767733894,0.0822,95046.0,95045.0,0.25398632]
[1735767734113,0.0822,95046.0,95045.0,0.35398632]
[1735767734315,0.1294,95046.0,95045.0,0.38074756]
[1735767734490,0.0472,95046.0,95045.0,0.38074756]
[1735767734733,0.0472,95046.0,95045.0,0.52289156]
[1735767735358,0.0472,95046.0,95045.0,0.53589156]
[1735767736383,0.0472,95046.0,95045.0,0.52126166]
[1735767736974,0.0472,95046.0,95045.0,0.17126166]
[1735767737177,0.1223,95046.0,95045.0,0.12911766]
[1735767737733,0.1223,95046.0,95045.0,0.02513134]
[1735767738188,0.1223,95046.0,95045.0,0.01213134]
[1735767738404,0.210409,95053.0,95045.0,0.01213134]
[1735767738405,0.2105948,95047.0,95045.0,0.002]
[1735767738613,0.210424,95046.0,95045.0,0.002]
[1735767738823,0.210424,95046.0,95030.0,0.210457]
[1735767739044,0.0468,95039.0,95031.0,0.10398632]
[1735767739276,0.08399707,95040.0,95031.0,0.01163345]
[1735767739277,0.210442,95038.0,95031.0,0.01163345]
[1735767739483,0.1219,95035.0,95031.0,0.01163345]
[1735767739683,0.210455,95032.0,95018.0,8.52e-05]
[1735767739856,0.08399707,95030.0,95018.0,8.52e-05]
[1735767740063,0.210464,95028.0,95018.0,8.52e-05]
[1735767740290,0.0751,95027.0,95018.0,8.52e-05]
[1735767741037,0.257268,95026.0,95018.0,8.52e-05]
[1735767741235,0.285575,95024.0,95018.0,8.52e-05]
[1735767741444,0.1219,95023.0,95018.0,8.52e-05]
[1735767741652,0.01067623,95025.0,95018.0,8.52e-05]
[1735767741653,0.1219,95021.0,95018.0,8.52e-05]
[1735767741859,0.1219,95019.0,95018.0,8.52e-05]
[1735767742498,0.0751,95007.0,94991.0,0.210544]
[1735767742703,0.049611,95006.0,94995.0,0.00049592]
[1735767743119,0.049611,95006.0,94996.0,0.01165242]
[1735767743328,0.0751,95005.0,94996.0,0.01165242]
[1735767745333,0.0751,95005.0,94996.0,0.01565242]
[1735767745752,0.0468,95004.0,94996.0,0.01565242]
[1735767745954,0.0751,95003.0,94996.0,0.01565242]
[1735767746154,0.0751,95003.0,94996.0,0.01665242]
[1735767747350,0.0751,95003.0,94996.0,0.01565242]
[1735767747710,0.0751,95003.0,94996.0,0.01665242]
[1735767748139,0.0751,95003.0,94996.0,0.01165242]
[1735767748344,0.0751,95003.0,94996.0,0.01665242]
[1735767748552,0.0751,95003.0,94996.0,0.01765242]
[1735767750990,0.0751,95003.0,94996.0,0.01773782]
[1735767751826,0.0751,95003.0,94997.0,0.210532]
[1735767752028,0.0751,95003.0,94998.0,0.01165134]
[1735767754671,0.0751,95003.0,94998.0,0.01665134]
[1735767754815,0.0751,95003.0,94998.0,0.01165134]
[1735767755261,0.0751,95003.0,94998.0,0.005]
[1735767755516,0.0751,95003.0,94999.0,0.0116508]
[1735767756922,0.0751,95003.0,94999.0,0.0126508]
[1735767758019,0.0751,95003.0,94999.0,0.0166508]
[1735767760781,0.0751,95003.0,94999.0,0.0156508]
[1735767760996,0.0751,95003.0,94999.0,0.0166508]
[1735767761216,0.0751,95003.0,94999.0,0.0126508]
[1735767761836,0.0751,95003.0,94999.0,0.0136508]
[1735767762464,0.222712,95002.0,94999.0,0.0186508]
[1735767762668,0.126,95001.0,94999.0,0.0186508]
[1735767762865,0.126,95000.0,94999.0,0.007]
[1735767763166,0.126,95000.0,94999.0,0.006]
[1735767763545,0.126,95000.0,94998.0,8.54e-05]
[1735767763788,0.0793,94999.0,94998.0,8.54e-05]
[1735767764162,0.13461979,94999.0,94998.0,8.54e-05]
[1735767764972,0.126,94999.0,94998.0,8.54e-05]
[1735767766370,0.22998632,94999.0,94998.0,8.54e-05]
[1735767766768,0.24085015,94999.0,94998.0,8.54e-05]
[1735767767097,0.24585015,94999.0,94998.0,8.54e-05]
[1735767767518,0.24385015,94999.0,94998.0,8.54e-05]
[1735767767760,0.1205,94997.0,94996.0,8.54e-05]
[1735767768020,0.22448632,94997.0,94996.0,8.54e-05]
[1735767768206,0.23828942,94997.0,94996.0,8.54e-05]
[1735767769248,0.25706825,94997.0,94996.0,8.54e-05]
[1735767769447,0.26006825,94997.0,94996.0,8.54e-05]
[1735767770190,0.26506825,94997.0,94996.0,8.54e-05]
[1735767770390,0.1285,94997.0,94996.0,8.54e-05]
[1735767770632,0.23248632,94997.0,94996.0,8.54e-05]
[1735767771441,0.31889275,94997.0,94996.0,8.54e-05]
[1735767775717,0.23248632,94997.0,94996.0,8.54e-05]
[1735767777114,0.22948632,94997.0,94996.0,8.54e-05]
[1735767777315,0.22448632,94997.0,94996.0,8.54e-05]
[1735767777867,0.22948632,94997.0,94996.0,8.54e-05]
[1735767778290,0.23448632,94997.0,94996.0,8.54e-05]
[1735767778509,0.23648632,94997.0,94996.0,8.54e-05]
[1735767778624,0.32499564,94997.0,94996.0,8.54e-05]
[1735767779105,0.32299564,94997.0,94996.0,8.54e-05]
[1735767779512,0.31299564,94997.0,94996.0,8.54e-05]
[1735767779807,0.31799564,94997.0,94996.0,8.54e-05]
[1735767781038,0.23148632,94997.0,94996.0,8.54e-05]
[1735767783040,0.22948632,94997.0,94996.0,8.54e-05]
[1735767783258,0.22648632,94997.0,94996.0,8.54e-05]
[1735767783560,0.23048632,94997.0,94996.0,8.54e-05]
[1735767786127,0.1265,94997.0,94996.0,8.54e-05]
[1735767787393,0.1245,94997.0,94996.0,8.54e-05]
[1735767787511,0.1265,94997.0,94996.0,8.54e-05]
[1735767787715,0.1225,94997.0,94996.0,8.54e-05]
[1735767789137,0.1205,94997.0,94996.0,8.54e-05]
[1735767789332,0.2107008,94998.0,94996.0,8.54e-05]
[1735767790455,0.2117008,94998.0,94996.0,8.54e-05]
[1735767790655,0.2127008,94998.0,94996.0,8.54e-05]
[1735767802184,0.27588893,94998.0,94996.0,8.54e-05]
[1735767802607,0.2127008,94998.0,94996.0,8.54e-05]
[1735767803205,0.30753115,94998.0,94996.0,8.54e-05]
[1735767804903,0.09483035,94997.0,94996.0,8.54e-05]
[1735767806540,0.35296324,94998.0,94996.0,8.54e-05]
[1735767806948,0.1318,94997.0,94996.0,8.54e-05]
[1735767807149,0.23578632,94997.0,94996.0,8.54e-05]
[1735767807767,0.42542052,94997.0,94996.0,8.54e-05]
[1735767808823,0.47282907,94997.0,94996.0,8.54e-05]
[1735767809902,0.23578632,94997.0,94996.0,8.54e-05]
[1735767817014,0.12064525,94997.0,94996.0,8.54e-05]
[1735767828634,0.2107008,94998.0,94996.0,8.54e-05]
[1735767829739,0.2117008,94998.0,94996.0,8.54e-05]
[1735767830363,0.35420212,94998.0,94996.0,8.54e-05]
[1735767830599,0.14367212,94998.0,94996.0,8.54e-05]
[1735767830804,0.14467212,94998.0,94996.0,8.54e-05]
[1735767831583,0.35303332,94997.0,94996.0,8.54e-05]
[1735767832445,0.40053377,94997.0,94996.0,8.54e-05]
[1735767836053,0.210532,94997.0,94996.0,8.54e-05]
[1735767836291,0.19017257,94998.0,94997.0,0.0817]
[1735767836496,0.19017257,94998.0,94997.0,0.18568632]
[1735767836681,0.19017257,94998.0,94997.0,0.1973382]
[1735767837000,0.0001708,94998.0,94997.0,0.1973382]
[1735767837532,0.0021708,94998.0,94997.0,0.1973382]
[1735767837705,0.0021708,94998.0,94997.0,0.09335188]
[1735767837908,0.0021708,94998.0,94997.0,0.30388388]
[1735767838065,0.0011708,94998.0,94997.0,0.292232]
[1735767838265,0.0011708,94998.0,94997.0,0.30388388]
[1735767838706,0.0011708,94998.0,94997.0,0.31088388]
[1735767840682,0.0011708,94998.0,94997.0,0.31388388]
[1735767841149,0.0011708,94998.0,94997.0,0.10335188]
[1735767842685,0.0011708,94998.0,94997.0,0.31388388]
[1735767845526,0.00085709,94998.0,94997.0,0.31388388]
[1735767846299,0.00085709,94998.0,94997.0,0.6908702]
[1735767847640,0.00085709,94998.0,94997.0,0.6909556]
[1735767847989,0.00102789,94998.0,94997.0,0.6909556]
[1735767851685,0.00102789,94998.0,94997.0,0.70150489]
[1735767868228,0.00102789,94998.0,94997.0,0.60150489]
[1735767869206,0.00102789,94998.0,94997.0,0.70150489]
[1735767871540,0.00102789,94998.0,94997.0,0.3362556]
[1735767873778,0.00102789,94998.0,94997.0,0.3592556]
[1735767883362,0.12752789,94998.0,94997.0,0.02173728]
[1735767883560,0.12752789,94998.0,94988.0,0.04449414]
[1735767883561,0.15,94992.0,94988.0,0.04449414]
[1735767883786,0.3266,94987.0,94986.0,0.05813536]
[1735767883987,0.15,94986.0,94966.0,0.4883428]
[1735767884247,0.437161,94984.0,94966.0,0.4883428]
[1735767884495,1.00922832,94984.0,94983.0,0.18913698]
[1735767884670,1.13188947,94984.0,94983.0,0.00014869]
[1735767884876,0.43719,94971.0,94956.0,0.18898829]
[1735767885131,0.54117632,94971.0,94970.0,0.00020553]
[1735767885333,1.36991279,94971.0,94970.0,0.00020553]
[1735767885457,1.00444179,94971.0,94970.0,0.00020553]
[1735767885872,0.99354179,94971.0,94970.0,0.00020553]
[1735767886601,0.99854179,94971.0,94970.0,0.00020553]
[1735767887071,0.67551999,94971.0,94970.0,0.00020553]
[1735767887297,1.50907168,94971.0,94970.0,0.00020553]
[1735767887513,1.44907168,94971.0,94970.0,0.00020553]
[1735767887718,1.45307168,94971.0,94970.0,0.00120553]
[1735767887921,1.44407168,94971.0,94970.0,0.00020553]
[1735767888242,1.05655499,94971.0,94970.0,0.00120553]
[1735767888657,1.05055499,94971.0,94970.0,0.00020553]
[1735767889028,1.05655499,94971.0,94970.0,0.00120553]
[1735767889553,1.28661177,94971.0,94970.0,0.00020553]
[1735767889698,1.28847134,94971.0,94970.0,0.00020553]
[1735767889900,1.29747134,94971.0,94970.0,0.00120553]
[1735767890717,1.25613006,94971.0,94970.0,0.00120553]
[1735767891102,1.06741456,94971.0,94970.0,0.00120553]
[1735767891366,1.05015544,94971.0,94970.0,0.00120553]
[1735767891842,1.06741456,94971.0,94970.0,0.00120553]
[1735767893467,1.16741456,94971.0,94970.0,0.00120553]
[1735767894885,1.31421456,94971.0,94970.0,5.3e-07]
[1735767895137,0.93546025,94971.0,94970.0,5.3e-07]
[1735767895640,0.93546025,94971.0,94970.0,8.3e-07]
[1735767899893,0.58467393,94971.0,94970.0,8.3e-07]
[1735767900166,0.47957632,94971.0,94970.0,8.3e-07]
[1735767900345,0.32957632,94971.0,94970.0,8.3e-07]
[1735767900873,0.47957632,94971.0,94970.0,8.3e-07]
[1735767901067,0.47357632,94971.0,94970.0,8.3e-07]
[1735767901278,0.57305045,94971.0,94970.0,8.3e-07]
[1735767901902,0.56905045,94971.0,94970.0,8.3e-07]
[1735767902319,0.57705045,94971.0,94970.0,0.00100083]
[1735767902569,0.46957632,94971.0,94970.0,8.3e-07]
[1735767902809,0.46957632,94971.0,94970.0,0.00100083]
[1735767903017,0.47757632,94971.0,94970.0,0.00100083]
[1735767903221,0.46957632,94971.0,94970.0,8.3e-07]
[1735767903456,0.47757632,94971.0,94970.0,0.00100083]
[1735767903655,0.49784265,94971.0,94970.0,0.00100083]
[1735767904006,0.49284265,94971.0,94970.0,0.00100083]
[1735767904720,0.49784265,94971.0,94970.0,0.00100083]
[1735767905242,0.49284265,94971.0,94970.0,0.00100083]
[1735767905474,0.49784265,94971.0,94970.0,0.00100083]
[1735767906330,0.013,94971.0,94970.0,0.00100083]
[1735767906736,0.013,94971.0,94970.0,0.01121686]
[1735767906936,0.013,94971.0,94970.0,0.00100083]
[1735767907405,0.008,94971.0,94970.0,0.22180886]
[1735767907566,0.0111708,94971.0,94970.0,0.21159283]
[1735767907765,0.0111708,94971.0,94970.0,0.22180886]
[1735767908321,0.0031708,94971.0,94970.0,0.22080886]
[1735767908539,0.0101708,94971.0,94970.0,0.22180886]
[1735767908683,0.0071708,94971.0,94970.0,0.22180886]
[1735767908879,0.0071708,94971.0,94970.0,0.22080886]
[1735767909095,0.0071708,94971.0,94970.0,0.01221686]
[1735767910499,0.0071708,94971.0,94970.0,0.01321686]
[1735767911178,0.0071708,94971.0,94970.0,0.11720318]
[1735767911730,0.0071708,94971.0,94970.0,0.14020318]
[1735767926268,0.0071708,94971.0,94970.0,0.01321686]
[1735767927703,0.0071708,94971.0,94970.0,0.01221686]
[1735767927942,0.0001708,94971.0,94970.0,0.01021686]
[1735767928148,0.0001708,94971.0,94970.0,0.01121686]
[1735767928375,0.0001708,94971.0,94970.0,0.01221686]
[1735767928510,0.0001708,94971.0,94970.0,0.01121686]
[1735767929011,0.0011708,94971.0,94970.0,0.01121686]
[1735767929426,0.0011708,94971.0,94970.0,0.01021686]
[1735767929837,0.0011708,94971.0,94970.0,0.01221686]
[1735767930253,0.0001708,94971.0,94970.0,0.01221686]
[1735767931145,0.0001708,94971.0,94970.0,0.01121686]
[1735767931570,0.0001708,94971.0,94970.0,0.01321686]
[1735767933520,0.0001708,94971.0,94970.0,0.11720318]
[1735767933723,0.0001708,94971.0,94970.0,0.19680318]
[1735767934518,0.0001708,94971.0,94970.0,0.21980318]
[1735767935352,0.0001708,94971.0,94970.0,0.36650318]
[1735767938351,0.0001708,94971.0,94970.0,0.3768679]
[1735767940180,0.0001708,94971.0,94970.0,0.3758679]
[1735767940373,0.0001708,94971.0,94970.0,0.6258679]
[1735767940775,0.0001708,94971.0,94970.0,0.6308679]
[1735767943770,0.0001708,94971.0,94970.0,0.5308679]
[1735767944072,0.0001708,94971.0,94970.0,0.6308679]
[1735767946557,0.0001708,94971.0,94970.0,0.5308679]
[1735767946791,0.0001708,94971.0,94970.0,0.6308679]
[1735767948164,0.0001708,94971.0,94970.0,0.01721686]
[1735767948863,0.0001708,94971.0,94970.0,0.11920318]
[1735767949047,0.0001708,94971.0,94970.0,0.11420318]
[1735767949451,0.0001708,94971.0,94970.0,0.11720318]
[1735767950588,0.0001708,94971.0,94970.0,0.11420318]
[1735767950906,0.0001708,94971.0,94970.0,0.11820318]
[1735767951149,0.0001708,94971.0,94970.0,0.11520318]
[1735767951359,0.0001708,94971.0,94970.0,0.11920318]
[1735767951764,0.0001708,94971.0,94970.0,0.12120318]
[1735767952791,0.0001708,94971.0,94970.0,0.12225608]
[1735767953718,0.0001708,94971.0,94970.0,0.20325608]
[1735767954147,0.0001708,94971.0,94970.0,0.37415608]
[1735767954355,0.0001708,94971.0,94970.0,0.37310318]
[1735767958806,0.0001708,94971.0,94970.0,0.27310318]
[1735767959008,0.0001708,94971.0,94970.0,0.29210318]
[1735767959412,0.0001708,94971.0,94970.0,0.19210318]
[1735767962809,0.0001708,94971.0,94970.0,0.20284037]
[1735767963011,0.0001708,94971.0,94970.0,0.20389315]
[1735767965134,0.0001708,94971.0,94970.0,0.30389315]
[1735767965404,0.0001708,94971.0,94970.0,0.30284037]
[1735767969955,0.0001708,94971.0,94970.0,0.30084037]
[1735767970155,0.0001708,94971.0,94970.0,0.30284037]
[1735767970664,0.0001708,94971.0,94970.0,0.19584037]
[1735767970837,0.0001708,94971.0,94970.0,0.14794037]
[1735767971042,0.0001708,94971.0,94970.0,0.15394037]
[1735767971244,0.0001708,94971.0,94970.0,0.14994037]
[1735767971454,0.0001708,94971.0,94970.0,0.14794037]
[1735767971661,0.0001708,94971.0,94970.0,0.12120318]
[1735767971866,0.0001708,94971.0,94970.0,0.12420318]
[1735767973146,0.0001708,94971.0,94970.0,0.12120318]
[1735767973346,0.0001708,94971.0,94970.0,0.12320318]
[1735767973761,0.0001708,94971.0,94970.0,0.11420318]
[1735767973900,0.0001708,94971.0,94970.0,0.11920318]
[1735767974108,0.0001708,94971.0,94970.0,0.12120318]
[1735767974429,0.0001708,94971.0,94970.0,0.11620318]
[1735767974620,0.0001708,94971.0,94970.0,0.11920318]
[1735767974850,0.0001708,94971.0,94970.0,0.12120318]
[1735767981813,0.0001708,94971.0,94970.0,0.14420318]
[1735767982015,0.0001708,94971.0,94970.0,0.26800318]
[1735767983313,0.09372423,94986.0,94983.0,0.210563]
[1735767983512,0.09372423,94986.0,94984.0,0.01020843]
[1735767983640,0.09372423,94986.0,94985.0,0.210559]
[1735767983853,0.0783,94990.0,94989.0,0.21055]
[1735767984054,0.0783,94990.0,94989.0,0.22075572]
[1735767986385,0.0793,94990.0,94989.0,0.22075572]
[1735767987046,0.0784708,94990.0,94989.0,0.22075572]
[1735767987470,0.0804708,94990.0,94989.0,0.22075572]
[1735767987682,0.0794708,94990.0,94989.0,0.22075572]
[1735767988048,0.0804708,94990.0,94989.0,0.22075572]
[1735767989716,0.0021708,94990.0,94989.0,0.22075572]
[1735767990076,0.0021708,94990.0,94989.0,0.32474204]
[1735767991539,0.0021708,94990.0,94989.0,0.36974204]
[1735767991888,0.0011708,94990.0,94989.0,0.39274204]
[1735767992085,0.0021708,94990.0,94989.0,0.39274204]
[1735767992284,0.0011708,94990.0,94989.0,0.39274204]
[1735767992576,0.0001708,94990.0,94989.0,0.39274204]
[1735767993028,0.0001708,94990.0,94989.0,0.39374204]
[1735767994573,0.0001708,94990.0,94989.0,0.34874204]
[1735767998673,0.0001708,94990.0,94989.0,0.35954546]
[1735768002026,0.0001708,94990.0,94989.0,0.33654546]
[1735768005453,0.0001708,94990.0,94989.0,0.32574204]
[1735768010834,0.0001708,94990.0,94989.0,0.32554511]
[1735768013759,0.0774708,94990.0,94989.0,0.01120572]
[1735768013912,0.0774708,94990.0,94989.0,0.001]
[1735768014724,0.0784708,94990.0,94989.0,0.001]
[1735768015066,0.0784708,94990.0,94986.0,8.53e-05]
[1735768015271,0.0794708,94990.0,94986.0,8.53e-05]
[1735768015682,0.0784708,94990.0,94986.0,8.53e-05]
[1735768016108,0.0774708,94990.0,94986.0,8.53e-05]
[1735768016311,0.17232578,94990.0,94986.0,8.53e-05]
[1735768017026,0.17332578,94990.0,94986.0,8.53e-05]
[1735768017611,0.0774708,94990.0,94986.0,8.53e-05]
[1735768017779,0.0784708,94990.0,94986.0,8.53e-05]
[1735768017949,0.0794708,94990.0,94986.0,8.53e-05]
[1735768019796,0.17432578,94990.0,94986.0,8.53e-05]
[1735768020741,0.17432578,94990.0,94987.0,0.01020681]
[1735768020967,0.09485498,94989.0,94987.0,0.01020681]
[1735768021385,0.09485498,94989.0,94986.0,8.53e-05]
[1735768022246,0.09585498,94989.0,94986.0,8.53e-05]
[1735768022446,0.09485498,94989.0,94986.0,8.53e-05]
[1735768022852,0.09585498,94989.0,94986.0,8.53e-05]
[1735768023038,0.09585498,94989.0,94987.0,0.01020681]
[1735768023681,0.001,94989.0,94987.0,0.01020681]
[1735768024232,0.21883741,94990.0,94987.0,0.01020681]
[1735768024435,0.14153741,94990.0,94988.0,0.14948632]
[1735768024655,0.001,94989.0,94988.0,0.14948632]
[1735768025576,0.0001708,94990.0,94989.0,0.21055]
[1735768025797,0.0011708,94990.0,94989.0,0.31453632]
[1735768026005,0.0008857,94990.0,94989.0,0.31453632]
[1735768026225,0.09498537,94999.0,94986.0,8.53e-05]
[1735768026400,0.0763,94996.0,94986.0,8.53e-05]
[1735768026812,0.001,94990.0,94986.0,8.53e-05]
[1735768027419,0.09481457,94991.0,94986.0,8.53e-05]
[1735768028022,0.09481457,94991.0,94988.0,0.001]
[1735768028232,0.18848881,94991.0,94988.0,0.001]
[1735768028438,0.0763,94989.0,94988.0,0.001]
[1735768028646,0.0763,94989.0,94986.0,8.53e-05]
[1735768029409,0.210552,94988.0,94986.0,8.53e-05]
[1735768029624,0.0763,94987.0,94986.0,8.53e-05]
[1735768030823,0.0793,94987.0,94986.0,8.53e-05]
[1735768032885,0.0833,94987.0,94986.0,8.53e-05]
[1735768033084,0.007,94987.0,94986.0,8.53e-05]
[1735768034105,0.007,94987.0,94986.0,0.2106423]
[1735768034448,0.007,94987.0,94986.0,0.22084965]
[1735768034802,0.007,94987.0,94986.0,0.01029265]
[1735768035215,0.003,94987.0,94986.0,0.01029265]
[1735768035636,0.005,94987.0,94986.0,0.01029265]
[1735768036035,0.002,94987.0,94986.0,0.01029265]
[1735768036247,0.004,94987.0,94986.0,0.01029265]
[1735768036618,0.002,94987.0,94986.0,0.01029265]
[1735768037039,0.003,94987.0,94986.0,0.01029265]
[1735768037643,0.001,94987.0,94986.0,0.01029265]
[1735768037880,0.003,94987.0,94986.0,0.01029265]
[1735768041825,0.01278665,94987.0,94986.0,0.01029265]
[1735768042126,0.003,94987.0,94986.0,0.01029265]
[1735768042795,0.003,94987.0,94986.0,8.53e-05]
[1735768046445,0.09769594,94987.0,94986.0,8.53e-05]
[1735768047679,0.003,94987.0,94986.0,8.53e-05]
[1735768048316,0.0823,94987.0,94986.0,8.53e-05]
[1735768048754,0.003,94987.0,94986.0,8.53e-05]
[1735768049785,0.09769594,94987.0,94986.0,8.53e-05]
[1735768050547,0.003,94987.0,94986.0,8.53e-05]
[1735768061563,0.18958748,94987.0,94986.0,8.53e-05]
[1735768061768,0.08613891,94987.0,94986.0,8.53e-05]
[1735768062349,0.19259102,94987.0,94986.0,8.53e-05]
[1735768063145,0.003,94987.0,94986.0,0.01029265]
[1735768064192,0.09780389,94987.0,94986.0,0.01029265]
[1735768064387,0.09780389,94987.0,94986.0,8.53e-05]
[1735768064773,0.09780389,94987.0,94986.0,0.01029265]
[1735768064975,0.003,94987.0,94986.0,0.01029265]
[1735768065472,0.002,94987.0,94986.0,0.01029265]
[1735768066116,0.09480389,94988.0,94987.0,0.210555]
[1735768066524,0.09480389,94988.0,94987.0,0.22076181]
[1735768066723,0.09480389,94988.0,94987.0,0.01020681]
[1735768067737,0.09580389,94988.0,94987.0,0.01020681]
[1735768068040,0.06749477,94988.0,94987.0,0.01020681]
[1735768068269,0.15029477,94988.0,94987.0,0.01020681]
[1735768068514,0.15029477,94988.0,94986.0,8.53e-05]
[1735768069284,0.27340778,94988.0,94986.0,8.53e-05]
[1735768069479,0.27340778,94988.0,94987.0,8.54e-05]
[1735768069681,0.27240778,94988.0,94987.0,8.54e-05]
[1735768070099,0.27340778,94988.0,94987.0,8.54e-05]
[1735768070431,0.0828,94988.0,94987.0,8.54e-05]
[1735768070688,0.1768822,94988.0,94987.0,8.54e-05]
[1735768070934,0.0838,94988.0,94987.0,8.54e-05]
[1735768076756,0.294352,94988.0,94987.0,8.54e-05]
[1735768077972,0.0838,94988.0,94987.0,8.54e-05]
[1735768079324,0.001,94988.0,94987.0,8.54e-05]
[1735768081239,0.23816113,94988.0,94987.0,0.22082907]
[1735768081443,0.23705844,94988.0,94987.0,0.22082907]
[1735768082280,0.23705844,94988.0,94987.0,0.01027407]
[1735768082492,0.0001706,94989.0,94987.0,0.01027407]
[1735768083762,0.0021706,94989.0,94987.0,0.01027407]
[1735768084469,0.02137833,94989.0,94987.0,0.01027407]
[1735768084676,0.02137833,94989.0,94987.0,8.54e-05]
[1735768084677,0.210552,94988.0,94987.0,8.54e-05]
[1735768085091,0.35284901,94988.0,94987.0,8.54e-05]
[1735768086065,0.211552,94988.0,94987.0,8.54e-05]
[1735768086487,0.001,94988.0,94987.0,8.54e-05]
[1735768087017,0.0004,94988.0,94987.0,8.54e-05]
[1735768094589,0.210952,94988.0,94987.0,8.54e-05]
[1735768095129,0.0004,94988.0,94987.0,8.54e-05]
[1735768095736,0.04996719,94988.0,94987.0,8.54e-05]
[1735768095942,0.08112607,94988.0,94987.0,8.54e-05]
[1735768096145,0.16012607,94988.0,94987.0,8.54e-05]
[1735768096859,0.15972607,94988.0,94987.0,8.54e-05]
[1735768097206,0.16272607,94988.0,94987.0,8.54e-05]
[1735768098632,0.15972607,94988.0,94987.0,8.54e-05]
[1735768098820,0.16772607,94988.0,94987.0,0.0010854]
[1735768099529,0.11815888,94988.0,94987.0,0.0010854]
[1735768100776,0.2221452,94988.0,94987.0,0.0010854]
[1735768101437,0.008,94988.0,94987.0,0.0010854]
[1735768103015,0.29238178,94988.0,94987.0,0.0010854]
[1735768103733,0.30396541,94988.0,94987.0,0.0010854]
[1735768103962,0.01958363,94988.0,94987.0,0.0010854]
[1735768104678,0.11502391,94988.0,94987.0,0.0010854]
[1735768104858,0.11532705,94988.0,94987.0,0.0010854]
[1735768105068,0.01988677,94988.0,94987.0,0.0010854]
[1735768105318,0.02005757,94988.0,94987.0,0.0010854]
[1735768107383,0.30443935,94988.0,94987.0,0.0010854]
[1735768108610,0.02005757,94988.0,94987.0,0.0010854]
[1735768110330,0.12404389,94988.0,94987.0,0.0010854]
[1735768112833,0.17072589,94988.0,94987.0,0.0010854]
[1735768114035,0.12404389,94988.0,94987.0,0.0010854]
[1735768117980,0.27404389,94988.0,94987.0,0.0010854]
[1735768118172,0.29364414,94988.0,94987.0,0.0010854]
[1735768118373,0.73242814,94988.0,94987.0,0.0010854]
[1735768118603,0.77822814,94988.0,94987.0,0.0010854]
[1735768118759,0.88221446,94988.0,94987.0,0.0010854]
[1735768118963,0.87721446,94988.0,94987.0,8.54e-05]
[1735768119390,0.87721446,94988.0,94987.0,0.0010854]
[1735768119391,0.88221446,94988.0,94987.0,0.0010854]
[1735768119588,0.87421446,94988.0,94987.0,8.54e-05]
[1735768119894,0.87421446,94988.0,94987.0,0.0010854]
[1735768119895,0.98221446,94988.0,94987.0,0.0010854]
[1735768120362,0.97921446,94988.0,94987.0,8.54e-05]
[1735768120553,0.97421446,94988.0,94987.0,8.54e-05]
[1735768120732,0.98521446,94988.0,94987.0,0.0020854]
[1735768124232,0.90019346,94988.0,94987.0,0.0020854]
[1735768124437,0.90219346,94988.0,94987.0,0.0020854]
[1735768125324,0.89030669,94988.0,94987.0,0.0020854]
[1735768125528,0.75240714,94988.0,94987.0,0.0020854]
[1735768125731,0.56895737,94988.0,94987.0,0.0020854]
[1735768126166,0.72713137,94988.0,94987.0,0.0020854]
[1735768129573,1.04681244,94988.0,94987.0,0.0020854]
[1735768131216,0.72713137,94988.0,94987.0,0.0020854]
[1735768131381,0.83111769,94988.0,94987.0,0.0020854]
[1735768133452,0.84622972,94988.0,94987.0,0.0020854]
[1735768134619,0.560555,94987.0,94986.0,7e-07]
[1735768134825,1.76462877,94987.0,94986.0,7e-07]
[1735768135009,0.80581551,94987.0,94986.0,7e-07]
[1735768135913,0.81824009,94987.0,94986.0,7e-07]
[1735768136115,0.82081551,94987.0,94986.0,7e-07]
[1735768141517,0.82081551,94987.0,94986.0,8.61e-05]
[1735768141927,1.41361451,94987.0,94986.0,8.61e-05]
[1735768142130,1.39104251,94987.0,94986.0,8.61e-05]
[1735768142545,0.82081551,94987.0,94986.0,8.61e-05]
[1735768142742,1.42538051,94987.0,94986.0,8.61e-05]
[1735768143381,1.4474283,94987.0,94986.0,8.61e-05]
[1735768144429,1.4034383,94987.0,94986.0,8.61e-05]
[1735768145327,1.30334751,94987.0,94986.0,8.61e-05]
[1735768150343,1.30334751,94987.0,94986.0,1e-07]
[1735768150513,0.82081551,94987.0,94986.0,1e-07]
[1735768151542,0.81181551,94987.0,94986.0,1e-07]
[1735768151785,0.82881551,94987.0,94986.0,1e-07]
[1735768151917,0.92251551,94987.0,94986.0,1e-07]
[1735768152614,0.46059,94971.0,94970.0,8.3e-07]
[1735768152860,0.68235249,94971.0,94970.0,8.3e-07]
[1735768153080,0.70003994,94971.0,94970.0,8.3e-07]
[1735768154924,0.70446335,94971.0,94970.0,8.3e-07]
[1735768155330,0.71346335,94971.0,94970.0,8.3e-07]
[1735768163777,1.03320845,94971.0,94970.0,8.3e-07]
[1735768164847,0.71346335,94971.0,94970.0,8.3e-07]
[1735768166917,0.26698632,94971.0,94970.0,8.3e-07]
[1735768167137,0.26698632,94971.0,94970.0,0.12720083]
[1735768167138,0.163,94971.0,94970.0,0.12720083]
[1735768167338,0.013,94971.0,94970.0,0.13739256]
[1735768168050,0.08416557,94980.0,94972.0,0.0798]
[1735768168249,0.18965888,94974.0,94973.0,0.0404]
[1735768168451,0.18965888,94974.0,94973.0,0.1182]
[1735768168913,0.18965888,94974.0,94973.0,0.1253901]
[1735768169911,0.0948062,94981.0,94974.0,0.0798]
[1735768170114,0.002,94980.0,94975.0,0.01018902]
[1735768170317,0.002,94980.0,94976.0,0.0798]
[1735768170651,0.0948062,94981.0,94976.0,0.0798]
[1735768171005,0.18965888,94985.0,94976.0,0.0798]
[1735768171006,0.15,94985.0,94976.0,0.0798]
[1735768171612,0.15,94985.0,94976.0,0.0808]
[1735768171868,0.15,94985.0,94977.0,0.0464]
[1735768172263,0.001,94985.0,94977.0,0.0464]
[1735768172755,0.210561,94984.0,94977.0,0.0464]
[1735768172963,0.09169849,94983.0,94977.0,0.0464]
[1735768174380,0.0001708,94986.0,94985.0,0.023]
[1735768174588,0.0949768,94989.0,94987.0,0.1476]
[1735768174817,0.1422093,94992.0,94989.0,0.1476]
[1735768174989,0.0141093,94992.0,94991.0,0.0518]
[1735768175345,0.18965888,94995.0,94993.0,0.023]
[1735768175685,0.06195888,94995.0,94994.0,0.43752532]
[1735768175888,8.8e-07,95019.0,94997.0,0.1]
[1735768176087,8.8e-07,95019.0,95017.0,0.236188]
[1735768176304,8.8e-07,95019.0,95017.0,0.35487432]